bitfinex-derivatives/quotes_ETHF0:USTF0_20260123
["timestamp","ask_amount","ask_price","bid_price","bid_amount"]
[1769140687030,0.83707859,2965.2,2964.2,0.005058]
[1769140687235,1.03630438,2965.3,2964.2,0.005058]
[1769140687437,0.89159309,2965.6,2964.2,0.14314757]
[1769140687639,0.83704858,2965.5,2964.2,0.14314757]
[1769140687943,0.83704858,2965.4,2964.2,2.56830541]
[1769140688145,0.89159309,2965.6,2964.2,2.56830541]
[1769140688338,0.83692748,2965.5,2964.2,2.56830541]
[1769140688534,0.83692748,2965.4,2964.2,2.56830541]
[1769140688744,0.89159309,2965.6,2964.2,2.56830541]
[1769140688947,0.8369283,2965.5,2964.2,2.56830541]
[1769140689142,0.8369283,2965.4,2964.2,0.14314757]
[1769140689343,0.8369283,2965.3,2964.2,0.14314757]
[1769140689646,0.89159309,2965.6,2964.2,0.14314757]
[1769140689943,0.83685969,2965.5,2964.2,2.56830541]
[1769140690143,0.83685969,2965.4,2964.2,0.14314757]
[1769140690340,0.89159309,2965.6,2964.2,2.56830541]
[1769140690544,0.83675498,2965.5,2964.2,2.56830541]
[1769140690746,0.83675498,2965.4,2964.2,2.56830541]
[1769140690946,0.89159309,2965.6,2964.2,2.56830541]
[1769140691146,0.83675498,2965.5,2964.2,2.56830541]
[1769140691345,0.83675498,2965.4,2964.2,2.56830541]
[1769140691548,0.89159309,2965.6,2964.2,2.56830541]
[1769140691748,0.83668103,2965.5,2964.2,0.14314757]
[1769140691944,0.83668103,2965.4,2964.2,0.14314757]
[1769140692143,0.89159309,2965.6,2964.2,0.14314757]
[1769140692344,0.83666554,2965.5,2964.2,0.14314757]
[1769140692540,0.83666554,2965.4,2964.2,0.14314757]
[1769140692746,0.89159309,2965.6,2964.2,0.14314757]
[1769140693043,0.83666642,2965.5,2964.2,0.14314757]
[1769140693248,0.89159309,2965.3,2964.2,0.14314757]
[1769140693952,0.00343447,2965.7,2964.5,0.13808957]
[1769140694154,0.83656533,2965.6,2964.5,0.13808957]
[1769140694351,0.00343447,2965.7,2964.5,0.13808957]
[1769140699162,0.83565547,2965.6,2964.5,0.13808957]
[1769140699459,0.00343447,2965.7,2964.5,0.13808957]
[1769140699761,0.83559527,2965.6,2964.5,0.13808957]
[1769140699959,0.00343447,2965.7,2964.5,0.13808957]
[1769140700160,0.83559615,2965.6,2964.5,0.13808957]
[1769140700357,0.00343447,2965.7,2964.5,0.13808957]
[1769140700558,0.83555346,2965.6,2964.5,0.13808957]
[1769140700760,0.00343447,2965.7,2964.5,0.13808957]
[1769140700960,0.83555346,2965.6,2964.5,0.13808957]
[1769140701162,0.00343447,2965.7,2964.5,0.13808957]
[1769140701361,0.83552764,2965.6,2964.5,0.13808957]
[1769140701561,0.00343447,2965.7,2964.5,0.13808957]
[1769140701862,0.83552764,2965.6,2964.5,0.13808957]
[1769140702162,0.00343447,2965.7,2964.5,0.13808957]
[1769140702353,0.83551804,2965.6,2964.5,0.13808957]
[1769140702558,0.00343447,2965.7,2964.5,0.13808957]
[1769140702753,0.83551804,2965.6,2964.5,0.13808957]
[1769140702959,0.00343447,2965.7,2964.5,0.13808957]
[1769140703154,0.83551804,2965.6,2964.5,0.13808957]
[1769140703357,0.00343447,2965.7,2964.5,0.13808957]
[1769140703555,0.83552446,2965.6,2964.5,0.13808957]
[1769140703763,0.00343447,2965.7,2964.5,0.13808957]
[1769140703965,0.83552445,2965.6,2964.5,0.13808957]
[1769140704166,0.00343447,2965.7,2964.5,0.13808957]
[1769140704365,0.83554921,2965.6,2964.5,0.13808957]
[1769140704565,0.00343447,2965.7,2964.5,0.13808957]
[1769140704762,0.83554921,2965.6,2964.5,0.13808957]
[1769140704962,0.00343447,2965.7,2964.5,0.13808957]
[1769140705164,0.83554921,2965.6,2964.5,0.13808957]
[1769140705365,0.00343447,2965.7,2964.5,0.13808957]
[1769140705565,0.83556886,2965.6,2964.5,0.13808957]
[1769140705765,0.00343447,2965.7,2964.5,0.13808957]
[1769140705966,0.83556674,2965.6,2964.5,0.13808957]
[1769140706166,0.00343447,2965.7,2964.5,0.13808957]
[1769140706367,0.83558987,2965.6,2964.5,0.13808957]
[1769140706567,0.00343447,2965.7,2964.5,0.13808957]
[1769140706768,0.83558987,2965.6,2964.5,0.13808957]
[1769140706969,0.00343447,2965.7,2964.5,0.13808957]
[1769140707164,0.83558981,2965.6,2964.5,0.13808957]
[1769140707364,0.00343447,2965.7,2964.5,0.13808957]
[1769140707564,0.83563334,2965.6,2964.5,0.13808957]
[1769140707765,0.00343447,2965.7,2964.5,0.13808957]
[1769140707964,0.83563256,2965.6,2964.5,0.13808957]
[1769140708164,0.00343447,2965.7,2964.5,0.13808957]
[1769140708361,0.83569489,2965.6,2964.5,0.13808957]
[1769140708565,0.00343447,2965.7,2964.5,0.13808957]
[1769140708863,0.83569489,2965.6,2964.5,0.13808957]
[1769140709065,0.00343447,2965.7,2964.5,0.13808957]
[1769140709466,0.89502756,2965.7,2964.5,0.13808957]
[1769140717179,0.89502756,2965.7,2964.5,2.56324741]
[1769140719091,0.89502756,2965.7,2964.5,0.13808957]
[1769140720290,0.8366422,2965.6,2964.5,0.13808957]
[1769140720485,0.89502756,2965.7,2964.5,0.13808957]
[1769140720685,0.83664219,2965.6,2964.5,0.13808957]
[1769140720884,0.89502756,2965.7,2964.5,0.13808957]
[1769140721086,0.83664219,2965.6,2964.5,0.13808957]
[1769140721384,0.89502756,2965.7,2964.5,2.56324741]
[1769140721583,0.83675283,2965.6,2964.5,2.56324741]
[1769140721781,0.89502756,2965.7,2964.5,2.56324741]
[1769140722094,0.83675294,2965.6,2964.5,2.56324741]
[1769140722390,0.89502756,2965.7,2964.5,2.56324741]
[1769140722592,0.83692433,2965.6,2964.5,2.56324741]
[1769140722788,0.89502756,2965.7,2964.5,2.56324741]
[1769140723091,0.83692433,2965.6,2964.5,2.56324741]
[1769140723693,0.89502756,2965.7,2964.5,2.56324741]
[1769140724093,0.89502756,2965.7,2964.5,0.13808957]
[1769140724696,0.89502756,2965.7,2964.5,2.56117794]
[1769140724895,0.83724762,2965.6,2964.5,2.56117794]
[1769140725096,0.89502756,2965.7,2964.5,2.56117794]
[1769140725291,0.83724916,2965.6,2964.5,2.56117794]
[1769140725593,0.89502756,2965.7,2964.5,2.56117794]
[1769140725793,0.83725544,2965.6,2964.5,2.56117794]
[1769140725995,0.89502756,2965.7,2964.5,2.56117794]
[1769140726198,0.8372561,2965.6,2964.5,2.56117794]
[1769140726384,0.89502756,2965.7,2964.5,2.56117794]
[1769140726588,0.83726572,2965.6,2964.5,2.56117794]
[1769140726795,0.89159309,2965.4,2964.4,2.42308837]
[1769140726999,0.89159309,2965.4,2964.3,2.42308837]
[1769140730201,0.89502756,2965.7,2964.3,2.57414836]
[1769140730495,0.83666031,2965.6,2964.4,2.42308837]
[1769140730687,0.83666031,2965.5,2964.4,2.42308837]
[1769140730887,0.89502756,2965.7,2964.4,2.42308837]
[1769140731094,0.83666038,2965.6,2964.4,2.42308837]
[1769140731397,0.83666038,2965.5,2964.4,2.42308837]
[1769140731599,0.89502756,2965.7,2964.4,2.42308837]
[1769140731897,0.83663121,2965.6,2964.4,2.42308837]
[1769140732091,0.83663121,2965.5,2964.4,2.42308837]
[1769140732298,0.89502756,2965.7,2964.4,2.42308837]
[1769140732493,0.83661519,2965.6,2964.4,2.42308837]
[1769140732691,0.83661519,2965.5,2964.4,2.42308837]
[1769140732891,0.89502756,2965.7,2964.4,2.42308837]
[1769140733091,0.83661519,2965.6,2964.4,2.42308837]
[1769140733290,0.83661519,2965.5,2964.4,2.42308837]
[1769140733496,0.89502756,2965.7,2964.4,2.42308837]
[1769140733691,0.83660059,2965.6,2964.4,2.42308837]
[1769140733893,0.83660059,2965.5,2964.4,2.42308837]
[1769140734096,0.89502756,2965.7,2964.4,2.42308837]
[1769140734296,0.83660059,2965.6,2964.4,2.42308837]
[1769140734495,0.83660059,2965.5,2964.4,2.42308837]
[1769140734800,0.89502756,2965.7,2964.4,2.42308837]
[1769140735000,0.83658724,2965.6,2964.4,2.42308837]
[1769140735298,0.83658724,2965.5,2964.4,2.42308837]
[1769140735496,0.89502756,2965.7,2964.4,2.42308837]
[1769140735697,0.83657511,2965.6,2964.4,2.42308837]
[1769140735894,0.83657511,2965.5,2964.4,2.42308837]
[1769140736100,0.89502756,2965.7,2964.4,2.42308837]
[1769140736296,0.83657511,2965.6,2964.4,2.42308837]
[1769140736599,0.83657511,2965.5,2964.4,2.57414836]
[1769140736795,0.89502756,2965.7,2964.4,2.57414836]
[1769140737002,0.83657003,2965.6,2964.4,2.57414836]
[1769140737198,0.83657003,2965.5,2964.4,2.57414836]
[1769140737498,0.89502756,2965.7,2964.4,2.57414836]
[1769140737689,0.8365674,2965.6,2964.4,2.57414836]
[1769140737891,0.8365674,2965.5,2964.4,2.57414836]
[1769140738093,0.89502756,2965.7,2964.4,2.57414836]
[1769140738292,0.83656625,2965.6,2964.4,2.57414836]
[1769140738493,0.83656625,2965.5,2964.4,2.57414836]
[1769140738699,0.89502756,2965.7,2964.4,2.57414836]
[1769140738902,0.83656625,2965.6,2964.4,2.57414836]
[1769140739200,0.83656625,2965.5,2964.4,0.15105999]
[1769140739400,0.83656625,2965.4,2964.4,0.15105999]
[1769140739703,0.89502756,2965.7,2964.4,0.15105999]
[1769140739896,0.8365669,2965.6,2964.4,0.15105999]
[1769140740096,0.8365669,2965.5,2964.4,0.15105999]
[1769140740298,0.8365669,2965.4,2964.4,0.15105999]
[1769140740503,0.89502756,2965.7,2964.4,0.15105999]
[1769140740702,0.83656517,2965.6,2964.4,0.15105999]
[1769140741004,0.83656517,2965.5,2964.4,0.15105999]
[1769140741205,0.83656517,2965.4,2964.4,0.15105999]
[1769140741509,0.89502756,2965.7,2964.4,0.15105999]
[1769140741798,0.83656904,2965.6,2964.5,0.14225333]
[1769140742005,0.83656904,2965.5,2964.5,0.14225333]
[1769140742208,0.00343447,2965.7,2964.5,0.14225333]
[1769140742505,0.83654549,2965.6,2964.5,0.14225333]
[1769140742705,0.83654549,2965.5,2964.5,0.14225333]
[1769140742900,0.00343447,2965.7,2964.5,0.14225333]
[1769140743101,0.83654319,2965.6,2964.5,0.14225333]
[1769140743300,0.83654319,2965.5,2964.5,0.14225333]
[1769140743500,0.00343447,2965.7,2964.5,0.14225333]
[1769140743806,0.83654651,2965.6,2964.5,0.14225333]
[1769140744103,0.83654651,2965.5,2964.5,0.14225333]
[1769140744304,0.00343447,2965.7,2964.5,0.14225333]
[1769140744506,0.83654939,2965.6,2964.5,0.14225333]
[1769140744702,0.83654939,2965.5,2964.5,0.14225333]
[1769140744903,0.00343447,2965.7,2964.5,0.14225333]
[1769140776537,0.00343447,2965.7,2964.7,0.14847409]
[1769140779337,0.16872,2966.8,2964.7,0.14847409]
[1769140779540,0.16872,2966.8,2964.9,0.14847409]
[1769140780339,0.17309801,2966.8,2964.9,0.14847409]
[1769140786045,0.31384995,2966.8,2964.9,0.14847409]
[1769140788347,0.14512995,2966.8,2964.9,0.14847409]
[1769140791348,0.00437801,2966.8,2964.9,0.14847409]
[1769140791752,0.00437801,2966.8,2965.3,0.14847409]
[1769140797657,0.00437801,2966.8,2965.8,0.005058]
[1769140797957,0.00437801,2966.8,2965.8,0.00824274]
[1769140806862,0.00437801,2966.8,2965.8,0.14738259]
[1769140806863,0.005058,2966.6,2965.8,0.14738259]
[1769140810168,0.005058,2966.6,2965.8,2.56453755]
[1769140811259,0.005058,2966.6,2965.9,0.13913985]
[1769140812462,0.00437801,2966.8,2965.9,0.13913985]
[1769140815269,0.8906079,2966.7,2965.8,0.00824274]
[1769140819269,0.83484607,2966.6,2965.8,0.00824274]
[1769140819572,0.8906079,2966.7,2965.8,0.00824274]
[1769140819873,0.83504293,2966.6,2965.8,0.00824274]
[1769140820172,0.8906079,2966.7,2965.8,0.00824274]
[1769140820372,0.835241,2966.6,2965.8,0.00824274]
[1769140820568,0.8906079,2966.7,2965.8,0.00824274]
[1769140820765,0.83524098,2966.6,2965.8,0.00824274]
[1769140821065,0.8906079,2966.7,2965.8,0.00824274]
[1769140821270,0.83524118,2966.6,2965.8,0.00824274]
[1769140821471,0.83524118,2966.5,2965.8,0.00824274]
[1769140821772,0.8906079,2966.7,2965.8,0.00824274]
[1769140821973,0.83554648,2966.6,2965.8,0.00824274]
[1769140822172,0.83554648,2966.5,2965.8,0.00824274]
[1769140822372,0.8906079,2966.7,2965.8,0.00824274]
[1769140822573,0.8906079,2966.4,2965.8,0.00824274]
[1769140824180,0.8906079,2966.7,2965.8,0.00824274]
[1769140824474,0.83553915,2966.6,2965.8,0.00824274]
[1769140824669,0.8906079,2966.7,2965.8,0.00824274]
[1769140824670,0.83553915,2966.5,2965.8,0.00824274]
[1769140824877,0.8906079,2966.7,2965.8,0.00824274]
[1769140825079,0.83552268,2966.6,2965.8,0.00824274]
[1769140825285,0.83552268,2966.5,2965.8,0.00824274]
[1769140825470,0.8906079,2966.7,2965.8,0.00824274]
[1769140825673,0.83551315,2966.6,2965.8,0.00824274]
[1769140825973,0.17664996,2966.5,2965.9,0.13913985]
[1769140826171,0.00437801,2966.8,2965.9,0.13913985]
[1769140829290,0.8906079,2966.7,2965.8,0.00824274]
[1769140834892,0.8906079,2966.4,2965.2,0.13913985]
[1769140835892,0.8906079,2966.4,2965.2,0.1427457]
[1769140836096,0.8906079,2966.7,2965.3,0.14091952]
[1769140837996,0.83059978,2966.6,2965.3,0.14091952]
[1769140838293,0.83059978,2966.5,2965.3,0.14091952]
[1769140838483,0.83059978,2966.4,2965.3,0.14091952]
[1769140838688,0.83059978,2966.3,2965.3,0.14091952]
[1769140838900,0.83059978,2966.2,2965.3,0.14091952]
[1769140839105,0.8906079,2966.7,2965.3,0.14091952]
[1769140839304,0.83045457,2966.6,2965.3,0.14091952]
[1769140839498,0.83045457,2966.5,2965.3,0.14091952]
[1769140839699,0.83045457,2966.4,2965.3,0.14091952]
[1769140839900,0.8906079,2966.7,2965.3,0.14091952]
[1769140840098,0.83045457,2966.6,2965.3,0.14091952]
[1769140840301,0.83045457,2966.5,2965.3,0.14091952]
[1769140840504,0.83045457,2966.4,2965.3,0.14091952]
[1769140840700,0.00437801,2966.8,2965.5,1.03152742]
[1769140840897,0.83039166,2966.7,2965.5,1.03152742]
[1769140841100,0.83039166,2966.6,2965.5,1.03152742]
[1769140841300,0.83039166,2966.5,2965.5,1.03152742]
[1769140841499,0.00437801,2966.8,2965.5,1.03152742]
[1769140841704,0.83037776,2966.7,2965.5,1.03152742]
[1769140841901,0.83037776,2966.6,2965.5,1.03152742]
[1769140842103,0.83037776,2966.5,2965.5,0.14091952]
[1769140842296,0.8906079,2966.7,2965.5,0.14091952]
[1769140842495,0.83036984,2966.6,2965.5,0.14091952]
[1769140842696,0.83036984,2966.5,2965.5,0.14091952]
[1769140842903,0.8906079,2966.7,2965.5,0.14091952]
[1769140843104,0.83037378,2966.6,2965.5,0.14091952]
[1769140843401,0.83037378,2966.5,2965.5,0.14091952]
[1769140843602,0.8906079,2966.7,2965.5,0.14091952]
[1769140843802,0.8906079,2966.4,2965.2,2.42076081]
[1769140844207,0.8906079,2966.4,2965.2,2.56168033]
[1769140845103,0.8906079,2966.4,2965.3,0.14091952]
[1769140848598,0.8906079,2966.4,2965.2,2.42076081]
[1769140849103,0.8906079,2966.4,2965.2,0.00360585]
[1769140849401,0.8906079,2966.4,2965.5,0.005058]
[1769140849799,0.83052236,2966.3,2965.5,0.005058]
[1769140849998,0.83052236,2966.2,2965.5,0.005058]
[1769140850299,1.72104159,2966.1,2965.5,0.005058]
[1769140850500,0.8906079,2966.1,2965.2,0.00360585]
[1769140850701,0.8956659,2966.1,2965.2,0.00360585]
[1769140853605,0.8906079,2965.8,2965.2,0.00360585]
[1769140854506,0.8906079,2965.8,2964.6,2.55807448]
[1769140855200,0.8906079,2965.8,2964.7,0.14091952]
[1769140855399,0.8956659,2966.1,2964.7,0.14377167]
[1769140855601,0.82979794,2966.0,2964.7,0.14377167]
[1769140855799,0.8956659,2966.1,2964.7,0.14377167]
[1769140856106,0.82979785,2966.0,2964.7,0.14377167]
[1769140856305,0.8956659,2966.1,2964.7,0.14377167]
[1769140856493,0.82971247,2966.0,2964.7,0.14377167]
[1769140856695,0.8956659,2966.1,2964.7,0.14377167]
[1769140856899,0.82971247,2966.0,2964.7,0.14377167]
[1769140857101,0.8956659,2966.1,2964.7,0.14377167]
[1769140857302,0.82971241,2966.0,2964.7,0.14377167]
[1769140857502,0.8956659,2966.1,2964.7,0.14377167]
[1769140857703,0.82969415,2966.0,2964.7,0.14377167]
[1769140857903,0.8956659,2966.1,2964.7,0.14377167]
[1769140858103,0.82969415,2966.0,2964.7,0.14377167]
[1769140858306,0.8956659,2966.1,2964.7,0.14377167]
[1769140858501,0.82968047,2966.0,2964.7,0.14377167]
[1769140858800,0.8956659,2966.1,2964.7,0.14377167]
[1769140859000,0.82968032,2966.0,2964.7,0.14377167]
[1769140859197,0.8956659,2966.1,2964.7,0.14377167]
[1769140859401,0.82970319,2966.0,2964.7,0.14377167]
[1769140859600,0.8956659,2966.1,2964.7,0.14377167]
[1769140859803,0.82970319,2966.0,2964.7,0.14377167]
[1769140860103,0.8956659,2966.1,2964.7,0.14377167]
[1769140860299,0.82970319,2966.0,2964.7,0.14377167]
[1769140860506,0.8956659,2966.1,2964.7,0.14377167]
[1769140860709,0.82977338,2966.0,2964.7,0.14377167]
[1769140861006,0.8906079,2965.8,2964.7,0.14377167]
[1769140861406,0.8906079,2965.8,2964.7,0.00285215]
[1769140862610,0.8906079,2965.5,2964.7,0.00285215]
[1769140862909,0.8906079,2965.8,2964.7,0.14334871]
[1769140863112,0.8906079,2966.0,2964.7,0.14334871]
[1769140863314,0.005058,2966.1,2964.7,0.14334871]
[1769140863511,0.82963532,2966.0,2964.7,0.14334871]
[1769140863714,0.005058,2966.1,2964.7,0.14334871]
[1769140863914,0.82963004,2966.0,2964.7,0.14334871]
[1769140864213,0.005058,2966.1,2964.7,0.14334871]
[1769140864413,0.82960784,2966.0,2964.7,0.14334871]
[1769140864613,0.005058,2966.1,2964.7,0.14334871]
[1769140864812,0.82960959,2966.0,2964.7,0.14334871]
[1769140865010,0.005058,2966.1,2964.7,0.14334871]
[1769140865215,0.82962535,2966.0,2964.7,0.14334871]
[1769140865510,0.005058,2966.1,2964.7,0.14334871]
[1769140865710,0.82955742,2966.0,2964.7,0.14334871]
[1769140865911,0.005058,2966.1,2964.7,0.14334871]
[1769140866110,0.8295627,2966.0,2964.7,0.14334871]
[1769140866410,0.005058,2966.1,2964.7,0.14334871]
[1769140866612,0.82894733,2966.0,2964.7,0.14334871]
[1769140866806,0.005058,2966.1,2964.7,0.14334871]
[1769140867005,0.82894827,2966.0,2964.7,0.14334871]
[1769140867208,0.005058,2966.1,2964.7,0.14334871]
[1769140867408,0.82892492,2966.0,2964.7,0.14334871]
[1769140867610,0.005058,2966.1,2964.7,0.14334871]
[1769140867812,0.82891941,2966.0,2964.7,0.14334871]
[1769140868013,0.005058,2966.1,2964.7,0.14334871]
[1769140868309,0.82891941,2966.0,2964.7,0.14334871]
[1769140868609,0.005058,2966.1,2964.7,0.14334871]
[1769140868812,0.8289135,2966.0,2964.7,0.14334871]
[1769140869015,0.005058,2966.1,2964.7,0.14334871]
[1769140869220,0.82891346,2966.0,2964.7,0.14334871]
[1769140869415,0.005058,2966.1,2964.7,0.14334871]
[1769140869614,0.8289202,2966.0,2964.7,0.14334871]
[1769140869913,0.005058,2966.1,2964.7,0.14334871]
[1769140870113,0.8289202,2966.0,2964.7,0.14334871]
[1769140870318,0.005058,2966.1,2964.7,0.14334871]
[1769140870619,0.82893472,2966.0,2964.7,0.14334871]
[1769140870819,0.005058,2966.1,2964.7,0.14334871]
[1769140871020,0.82893478,2966.0,2964.7,0.14334871]
[1769140871216,0.005058,2966.1,2964.7,0.14334871]
[1769140871518,0.82901891,2966.0,2964.7,0.14334871]
[1769140871722,0.005058,2966.1,2964.7,0.14334871]
[1769140871914,0.82902784,2966.0,2964.7,0.14334871]
[1769140872115,0.005058,2966.1,2964.7,0.14334871]
[1769140872315,0.82911287,2966.0,2964.7,0.14334871]
[1769140872517,0.82911287,2965.9,2964.7,0.14334871]
[1769140872825,0.005058,2966.1,2964.7,0.14334871]
[1769140873121,0.8291232,2966.0,2964.7,0.14334871]
[1769140873322,0.8291232,2965.9,2964.7,0.14334871]
[1769140873510,0.005058,2966.1,2964.7,0.14334871]
[1769140873717,0.82921952,2966.0,2964.7,0.14334871]
[1769140873917,0.82921952,2965.9,2964.7,0.14334871]
[1769140874120,0.005058,2966.1,2964.7,0.14334871]
[1769140874321,0.82934228,2966.0,2964.7,0.14334871]
[1769140874617,0.82934228,2965.9,2964.7,0.14334871]
[1769140874817,0.005058,2966.1,2964.7,0.14334871]
[1769140875116,0.82935185,2966.0,2964.7,0.14334871]
[1769140875316,0.82935185,2965.9,2964.7,0.14334871]
[1769140875511,0.005058,2966.1,2964.7,0.14334871]
[1769140875716,0.82949075,2966.0,2964.7,0.14334871]
[1769140875918,0.82949075,2965.9,2964.7,0.14334871]
[1769140876119,0.005058,2966.1,2964.7,0.14334871]
[1769140876320,0.82965699,2966.0,2964.7,0.14334871]
[1769140876521,0.82965699,2965.9,2964.7,0.00285215]
[1769140876720,0.82965699,2965.8,2964.7,0.00285215]
[1769140881132,0.82965699,2965.7,2964.7,0.00285215]
[1769140881427,0.82965699,2965.6,2964.7,0.00285215]
[1769140881627,0.005058,2966.1,2964.7,0.00285215]
[1769140881833,0.83031135,2966.0,2964.7,0.00285215]
[1769140882024,0.83031135,2965.9,2964.7,0.00285215]
[1769140882332,0.83031135,2965.8,2964.7,0.00285215]
[1769140882531,0.83031135,2965.7,2964.7,0.00285215]
[1769140882732,0.83031135,2965.6,2964.7,0.00285215]
[1769140882937,0.13036469,2966.0,2964.7,0.00285215]
[1769140883235,0.83042042,2965.9,2964.7,0.00285215]
[1769140883530,0.83042042,2965.8,2964.7,0.00285215]
[1769140883732,0.83042042,2965.7,2964.7,0.00285215]
[1769140883927,0.83042042,2965.6,2964.7,0.00285215]
[1769140884131,0.13036469,2966.0,2964.7,0.00285215]
[1769140884431,0.83054759,2965.9,2964.7,0.00285215]
[1769140884630,0.83054759,2965.8,2964.7,0.00285215]
[1769140884831,0.13036469,2966.0,2964.7,0.00285215]
[1769140884832,0.83054759,2965.7,2964.7,0.00285215]
[1769140885032,0.83054759,2965.6,2964.7,0.00285215]
[1769140885227,0.83054759,2965.5,2964.7,0.00285215]
[1769140885428,0.13036469,2966.0,2964.7,0.00285215]
[1769140885627,0.83053162,2965.9,2964.7,0.00285215]
[1769140885832,0.83053162,2965.8,2964.7,0.00285215]
[1769140886130,0.83053162,2965.7,2964.7,0.00285215]
[1769140886331,0.83053162,2965.6,2964.7,0.00285215]
[1769140886532,0.83053162,2965.5,2964.7,0.00285215]
[1769140886735,0.13036469,2966.0,2964.7,0.00285215]
[1769140887033,0.83054392,2965.9,2964.7,0.00285215]
[1769140887233,0.83054392,2965.8,2964.7,0.00285215]
[1769140887532,0.83054392,2965.7,2964.7,0.00285215]
[1769140887732,0.83054392,2965.6,2964.7,0.00285215]
[1769140887932,0.13036469,2966.0,2964.7,0.00285215]
[1769140887933,0.83054392,2965.5,2964.7,0.00285215]
[1769140888133,0.13036469,2966.0,2964.7,0.00285215]
[1769140888330,0.83055826,2965.9,2964.7,0.00285215]
[1769140888530,0.83055826,2965.8,2964.7,0.00285215]
[1769140888829,0.83055826,2965.7,2964.7,0.00285215]
[1769140889030,0.83055826,2965.6,2964.7,0.00285215]
[1769140889231,0.13036469,2966.0,2964.7,0.00285215]
[1769140889431,0.83049563,2965.9,2964.7,0.00285215]
[1769140889634,0.83049563,2965.8,2964.7,0.00285215]
[1769140889835,0.83049563,2965.7,2964.7,0.00285215]
[1769140890036,0.83049563,2965.6,2964.7,0.00285215]
[1769140890236,0.13036469,2966.0,2964.7,0.00285215]
[1769140890436,0.83057484,2965.9,2964.7,0.00285215]
[1769140890637,0.83057484,2965.8,2964.7,0.00285215]
[1769140890838,0.83057479,2965.7,2964.7,0.00285215]
[1769140891036,0.83057479,2965.6,2964.7,0.00285215]
[1769140891242,0.13036469,2966.0,2964.7,0.00285215]
[1769140891437,0.83057603,2965.9,2964.7,0.00285215]
[1769140891637,0.83057603,2965.8,2964.7,0.00285215]
[1769140891834,0.83057603,2965.7,2964.7,0.00285215]
[1769140892038,0.83057603,2965.6,2964.7,0.00285215]
[1769140892240,0.13036469,2966.0,2964.7,0.00285215]
[1769140892438,0.83052313,2965.9,2964.7,0.00285215]
[1769140892742,0.83052313,2965.8,2964.7,0.00285215]
[1769140892943,0.83052313,2965.7,2964.7,0.00285215]
[1769140893138,0.83052313,2965.6,2964.7,0.00285215]
[1769140893332,0.13036469,2966.0,2964.7,0.00285215]
[1769140893635,0.95949476,2965.9,2964.7,0.00285215]
[1769140893835,0.83049204,2965.8,2964.7,0.00285215]
[1769140894133,0.83049204,2965.7,2964.7,0.00285215]
[1769140894333,0.83049204,2965.6,2964.7,0.00285215]
[1769140894633,0.12900272,2965.9,2964.7,0.00285215]
[1769140894834,0.83045873,2965.8,2964.7,0.00285215]
[1769140895033,0.83045873,2965.7,2964.7,0.00285215]
[1769140895240,0.83045873,2965.6,2964.7,0.00285215]
[1769140895441,0.12900272,2965.9,2964.7,0.00285215]
[1769140895747,0.83046702,2965.8,2964.7,0.00285215]
[1769140896040,0.83046702,2965.7,2964.7,0.00285215]
[1769140896241,0.83046702,2965.6,2964.7,0.00285215]
[1769140896442,0.12900272,2965.9,2964.7,0.00285215]
[1769140896638,0.83064184,2965.8,2964.7,0.00285215]
[1769140896843,0.83064184,2965.7,2964.7,0.00285215]
[1769140897043,0.83064184,2965.6,2964.7,0.00285215]
[1769140897235,0.005058,2966.1,2964.7,0.00285215]
[1769140897431,0.83066321,2966.0,2964.7,0.00285215]
[1769140897646,0.83066321,2965.9,2964.7,0.00285215]
[1769140897940,0.83066321,2965.8,2964.7,0.00285215]
[1769140898142,0.83066321,2965.7,2964.7,0.00285215]
[1769140898343,0.83066321,2965.6,2964.7,0.00285215]
[1769140898541,0.005058,2966.1,2964.7,0.00285215]
[1769140898742,0.83069421,2966.0,2964.7,0.00285215]
[1769140898939,0.83069421,2965.9,2964.7,0.00285215]
[1769140899140,0.83069421,2965.8,2964.7,0.00285215]
[1769140899342,0.83069421,2965.7,2964.7,0.00285215]
[1769140899641,0.83069421,2965.6,2964.7,0.00285215]
[1769140899843,0.13213027,2966.1,2964.7,0.00285215]
[1769140900045,0.83080113,2966.0,2964.7,0.13949886]
[1769140900247,0.83080113,2965.9,2964.7,0.13949886]
[1769140900440,0.83080113,2965.8,2964.7,0.13949886]
[1769140900641,0.83080113,2965.7,2964.7,0.13949886]
[1769140900841,0.83080113,2965.6,2964.7,0.13949886]
[1769140901037,0.005058,2966.1,2964.7,0.13949886]
[1769140901247,0.83092611,2966.0,2964.7,0.13949886]
[1769140901436,0.83092611,2965.9,2964.7,0.13949886]
[1769140901641,0.83092611,2965.8,2964.7,0.13949886]
[1769140901836,0.83092611,2965.7,2964.7,0.13949886]
[1769140902036,0.83092611,2965.6,2964.7,0.13949886]
[1769140902246,0.005058,2966.1,2964.7,0.13949886]
[1769140902447,0.83105699,2966.0,2964.7,0.13949886]
[1769140902650,0.83105699,2965.9,2964.7,0.13949886]
[1769140902946,0.83105699,2965.8,2964.7,0.13949886]
[1769140903144,0.83105699,2965.7,2964.7,0.13949886]
[1769140903344,0.005058,2966.1,2964.7,0.13949886]
[1769140903345,0.83105699,2965.6,2964.7,0.13949886]
[1769140903545,0.005058,2966.1,2964.7,0.13949886]
[1769140903742,0.83112391,2966.0,2964.7,0.13949886]
[1769140903944,0.83112391,2965.9,2964.7,0.13949886]
[1769140904143,0.83112391,2965.8,2964.7,0.13949886]
[1769140904345,0.83112391,2965.7,2964.7,0.13949886]
[1769140904546,0.83112391,2965.6,2964.7,0.13949886]
[1769140904844,0.83112391,2965.5,2964.7,0.13949886]
[1769140905149,0.005058,2966.1,2964.7,0.13949886]
[1769140905447,0.8310987,2966.0,2964.7,0.13949886]
[1769140905647,0.8310987,2965.9,2964.7,0.13949886]
[1769140905846,0.8310987,2965.8,2964.7,0.13949886]
[1769140906051,0.8310987,2965.7,2964.7,0.13949886]
[1769140906347,0.005058,2966.1,2964.7,0.13949886]
[1769140906542,0.83126191,2966.0,2964.7,0.13949886]
[1769140906743,0.83126191,2965.9,2964.7,0.13949886]
[1769140906948,0.83126191,2965.8,2964.7,0.13949886]
[1769140907148,0.83126191,2965.7,2964.7,0.13949886]
[1769140907347,0.83126191,2965.6,2964.7,0.13949886]
[1769140907552,0.005058,2966.1,2964.7,0.13949886]
[1769140907846,0.83134163,2966.0,2964.7,0.13949886]
[1769140908050,0.83134163,2965.9,2964.7,0.13949886]
[1769140908245,0.83134163,2965.8,2964.7,0.13949886]
[1769140908448,0.83134163,2965.7,2964.7,0.13949886]
[1769140908645,0.83134163,2965.6,2964.7,0.13949886]
[1769140908841,0.005058,2966.1,2964.7,0.13949886]
[1769140909045,0.83132627,2966.0,2964.7,0.13949886]
[1769140909250,0.83132627,2965.9,2964.7,0.13949886]
[1769140909453,0.83132627,2965.8,2964.7,0.13949886]
[1769140909752,0.83132627,2965.7,2964.7,0.13949886]
[1769140909952,0.83132627,2965.6,2964.7,0.13949886]
[1769140910150,0.005058,2966.1,2964.7,0.13949886]
[1769140910352,0.83131205,2966.0,2964.7,0.13949886]
[1769140910545,0.83131205,2965.9,2964.7,0.13949886]
[1769140910743,0.83131205,2965.8,2964.7,0.13949886]
[1769140910948,0.83131205,2965.7,2964.7,0.13949886]